fUST/lending_fUST_20260520
["ID","MTS","AMOUNT","RATE_DAILY","PERIOD"]
[422710101,1779287449000,-641.61168605,8.493e-05,2]
[422710099,1779287449000,-509.0659867,8.493e-05,2]
[422710097,1779287449000,-2186.77,8.493e-05,2]
[422710103,1779287449000,-854.87,8.493e-05,2]
[422710102,1779287449000,-3735.22831395,8.493e-05,2]
[422710105,1779287449000,-3631.6632325,8.493e-05,2]
[422710107,1779287449000,-1188.86161004,8.493e-05,2]
[422710109,1779287449000,-500.0,8.493e-05,2]
[422710106,1779287449000,-685.54838996,8.493e-05,2]
[422710104,1779287449000,-2702.8667675,8.493e-05,2]
[422710110,1779287449000,-5115.56060726,8.493e-05,2]
[422710108,1779287449000,-1581.86,8.493e-05,2]
[422710086,1779287449000,-500.0,8.493e-05,2]
[422710083,1779287449000,-2761.19,8.493e-05,2]
[422710095,1779287449000,-500.0,8.493e-05,2]
[422710088,1779287449000,-500.0,8.493e-05,2]
[422710056,1779287449000,-500.0,8.493e-05,2]
[422710058,1779287449000,-500.0,8.493e-05,2]
[422710089,1779287449000,-500.0,8.493e-05,2]
[422710068,1779287449000,-500.0,8.493e-05,2]
[422710078,1779287449000,-500.0,8.493e-05,2]
[422710077,1779287449000,-500.0,8.493e-05,2]
[422710079,1779287449000,-500.0,8.493e-05,2]
[422710072,1779287449000,-2273.16,8.493e-05,2]
[422710067,1779287449000,-563.96,8.493e-05,2]
[422710071,1779287449000,-739.54,8.493e-05,2]
[422710057,1779287449000,-500.0,8.493e-05,2]
[422710075,1779287449000,-568.13,8.493e-05,2]
[422710076,1779287449000,-500.0,8.493e-05,2]
[422710090,1779287449000,-500.0,8.493e-05,2]
[422710082,1779287449000,-500.0,8.493e-05,2]
[422710080,1779287449000,-493.99907068,8.493e-05,2]
[422710085,1779287449000,-1931.36,8.493e-05,2]
[422710081,1779287449000,-500.0,8.493e-05,2]
[422710074,1779287449000,-2916.5,8.493e-05,2]
[422710073,1779287449000,-2111.4,8.493e-05,2]
[422710070,1779287449000,-500.0,8.493e-05,2]
[422710091,1779287449000,-2035.93,8.493e-05,2]
[422710111,1779287473000,-342.81962338,8.119e-05,2]
[422710112,1779287754000,152.0,7.945e-05,7]
[422710114,1779287985000,96.14161937,7.878e-05,2]
[422710195,1779288631000,-161.70661154,8.131e-05,2]
[422710214,1779288631000,-155.17,8.132e-05,2]
[422710208,1779288631000,-2203.0,8.132e-05,2]
[422710197,1779288631000,-151.0,8.131e-05,2]
[422710185,1779288631000,-492.87543533,7.893e-05,2]
[422710173,1779288631000,-500.0,7.878e-05,15]
[422710193,1779288631000,-766.43500783,8.131e-05,2]
[422710181,1779288631000,-3566.01177736,7.878e-05,15]
[422710189,1779288631000,-342.81962338,8.119e-05,2]
[422710183,1779288631000,-212.92571587,7.878e-05,2]
[422710187,1779288631000,-165.565678,7.935e-05,2]
[422710191,1779288631000,-300.0,8.13e-05,2]
[422710199,1779288631000,-151.0,8.131e-05,2]
[422710205,1779288631000,-151.0,8.132e-05,2]
[422710201,1779288631000,-151.0,8.131e-05,2]
[422710212,1779288631000,-647.0,8.132e-05,2]
[422710229,1779288631000,-224.77779565,8.218e-05,2]
[422710221,1779288631000,-500.0,8.218e-05,2]
[422710227,1779288631000,-500.0,8.218e-05,2]
[422710231,1779288631000,-275.22220435,8.218e-05,2]
[422710223,1779288631000,-500.0,8.218e-05,2]
[422710225,1779288631000,-500.0,8.218e-05,2]
[422710219,1779288631000,-500.0,8.218e-05,2]
[422710206,1779288631000,-185.0,8.132e-05,2]
[422710216,1779288631000,-478.80114834,8.218e-05,2]
[422710203,1779288631000,-160.0,8.131e-05,2]
[422710210,1779288631000,-443.0,8.132e-05,2]
[422710217,1779288631000,-500.0,8.218e-05,2]
[422710244,1779288632000,-500.0,8.218e-05,2]
[422710240,1779288632000,-500.0,8.218e-05,2]
[422710236,1779288632000,-284.40489258,8.218e-05,2]
[422710238,1779288632000,-215.59510742,8.218e-05,2]
[422710242,1779288632000,-500.0,8.218e-05,2]
[422710248,1779288632000,-500.0,8.218e-05,2]
[422710252,1779288632000,-606.24908578,8.218e-05,2]
[422710250,1779288632000,-35.48122889,8.218e-05,2]
[422710254,1779288632000,-500.0,8.218e-05,2]
[422710256,1779288632000,-225.12381729,8.218e-05,2]
[422710246,1779288632000,-500.0,8.218e-05,2]
[422710332,1779288638000,-500.0,8.219e-05,2]
[422710331,1779288638000,-638.54,8.219e-05,2]
[422710333,1779288638000,-500.0,8.219e-05,2]
[422710336,1779288638000,-513.59,8.219e-05,2]
[422710338,1779288638000,-500.0,8.219e-05,2]
[422710335,1779288638000,-500.0,8.219e-05,2]
[422710334,1779288638000,-500.0,8.219e-05,2]
[422710330,1779288638000,-500.0,8.219e-05,2]
[422710340,1779288638000,-500.0,8.219e-05,2]
[422710341,1779288638000,-395.3745833,8.219e-05,2]
[422710347,1779288638000,-500.0,8.219e-05,2]
[422710337,1779288638000,-500.0,8.219e-05,2]
[422710339,1779288638000,-500.0,8.219e-05,2]
[422710319,1779288638000,-550.0,8.218e-05,2]
[422710329,1779288638000,-500.0,8.219e-05,2]
[422710327,1779288638000,-168.95356662,8.219e-05,2]
[422710318,1779288638000,-500.0,8.218e-05,2]
[422710322,1779288638000,-500.0,8.218e-05,2]
[422710326,1779288638000,-169.751,8.218e-05,2]
[422710320,1779288638000,-500.0,8.218e-05,2]
[422710325,1779288638000,-500.0,8.218e-05,2]
[422710324,1779288638000,-500.0,8.218e-05,2]
[422710323,1779288638000,-500.0,8.218e-05,2]
[422710321,1779288638000,-500.0,8.218e-05,2]
[422710349,1779288638000,-500.0,8.219e-05,2]
[422710317,1779288638000,-274.87618271,8.218e-05,2]
[422710328,1779288638000,-331.04643338,8.219e-05,2]
[422710343,1779288638000,-500.0,8.219e-05,2]
[422710345,1779288638000,-663.92,8.219e-05,2]
[422710342,1779288638000,-500.0,8.219e-05,2]
[422710369,1779288638000,-626.51,8.219e-05,2]
[422710371,1779288638000,-152.58707739,8.219e-05,2]
[422710375,1779288638000,-22.99325659,8.219e-05,2]
[422710367,1779288638000,-500.0,8.219e-05,2]
[422710372,1779288638000,-415.86023326,8.219e-05,2]
[422710370,1779288638000,-500.0,8.219e-05,2]
[422710368,1779288638000,-500.0,8.219e-05,2]
[422710359,1779288638000,-1120.39,8.219e-05,2]
[422710361,1779288638000,-1205.52,8.219e-05,2]
[422710362,1779288638000,-500.0,8.219e-05,2]
[422710364,1779288638000,-300.28889719,8.219e-05,2]
[422710363,1779288638000,-500.0,8.219e-05,2]
[422710365,1779288638000,-199.71110281,8.219e-05,2]
[422710358,1779288638000,-500.0,8.219e-05,2]
[422710366,1779288638000,-500.0,8.219e-05,2]
[422710360,1779288638000,-544.93,8.219e-05,2]
[422710356,1779288638000,-500.0,8.219e-05,2]
[422710357,1779288638000,-500.0,8.219e-05,2]
[422710354,1779288638000,-500.0,8.219e-05,2]
[422710355,1779288638000,-500.0,8.219e-05,2]
[422710352,1779288638000,-500.0,8.219e-05,2]
[422710353,1779288638000,-500.0,8.219e-05,2]
[422710351,1779288638000,-1110.4,8.219e-05,2]
[422710348,1779288638000,-500.0,8.219e-05,2]
[422710350,1779288638000,-500.0,8.219e-05,2]
[422710373,1779288638000,-500.0,8.219e-05,2]
[422710346,1779288638000,-500.0,8.219e-05,2]
[422710374,1779288638000,-772.12,8.219e-05,2]
[422710344,1779288638000,-524.6,8.219e-05,2]
[422710384,1779288640000,-455.93404,8.219e-05,2]
[422710401,1779288643000,-500.0,8.219e-05,2]
[422710403,1779288643000,-500.0,8.219e-05,2]
[422710402,1779288643000,-500.0,8.219e-05,2]
[422710398,1779288643000,-132.61270341,8.219e-05,2]
[422710400,1779288643000,-500.0,8.219e-05,2]
[422710399,1779288643000,-500.0,8.219e-05,2]
[422710404,1779288643000,-274.98091308,8.219e-05,2]
[422710560,1779288646000,-500.0,8.219e-05,2]
[422710564,1779288646000,-500.24553573,8.219e-05,2]
[422710562,1779288646000,-500.0,8.219e-05,2]
[422710556,1779288646000,-861.86,8.219e-05,2]
[422710558,1779288646000,-500.0,8.219e-05,2]
[422710550,1779288646000,-500.0,8.219e-05,2]
[422710546,1779288646000,-500.0,8.219e-05,2]
[422710552,1779288646000,-574.76,8.219e-05,2]
[422710548,1779288646000,-791.64,8.219e-05,2]
[422710534,1779288646000,-546.1,8.219e-05,2]
[422710532,1779288646000,-500.0,8.219e-05,2]
[422710544,1779288646000,-490.98703025,8.219e-05,2]
[422710530,1779288646000,-500.0,8.219e-05,2]
[422710542,1779288646000,-500.0,8.219e-05,2]
[422710538,1779288646000,-500.0,8.219e-05,2]
[422710540,1779288646000,-500.0,8.219e-05,2]
[422710528,1779288646000,-225.01908692,8.219e-05,2]
[422710536,1779288646000,-535.58,8.219e-05,2]
[422710566,1779288646000,-500.0,8.219e-05,2]
[422710554,1779288646000,-411.3018048,8.219e-05,2]
[422710568,1779288646000,-1273.47,8.219e-05,2]
[422710599,1779288646000,-500.0,8.219e-05,2]
[422710572,1779288646000,-500.0,8.219e-05,2]
[422710570,1779288646000,-500.0,8.219e-05,2]
[422710615,1779288646000,-285.000965,8.219e-05,2]
[422710613,1779288646000,-500.0,8.219e-05,2]
[422710611,1779288646000,-975.54,8.219e-05,2]
[422710607,1779288646000,-500.0,8.219e-05,2]
[422710603,1779288646000,-330.80525464,8.219e-05,2]
[422710605,1779288646000,-646.6,8.219e-05,2]
[422710601,1779288646000,-1943.5319,8.219e-05,2]
[422710589,1779288646000,-500.0,8.219e-05,2]
[422710593,1779288646000,-707.22,8.219e-05,2]
[422710609,1779288646000,-590.41,8.219e-05,2]
[422710595,1779288646000,-1296.39,8.219e-05,2]
[422710597,1779288646000,-500.0,8.219e-05,2]
[422710587,1779288646000,-500.0,8.219e-05,2]
[422710585,1779288646000,-500.0,8.219e-05,2]
[422710583,1779288646000,-711.03,8.219e-05,2]
[422710581,1779288646000,-2556.79,8.219e-05,2]
[422710579,1779288646000,-844.37,8.219e-05,2]
[422710577,1779288646000,-500.0,8.219e-05,2]
[422710591,1779288646000,-500.0,8.219e-05,2]
[422710575,1779288646000,-500.0,8.219e-05,2]
[422710702,1779288647000,-151.0,8.219e-05,2]
[422710700,1779288647000,-473.343753,8.219e-05,2]
[422710689,1779288647000,-1542.82,8.219e-05,2]
[422710695,1779288647000,-500.0,8.219e-05,2]
[422710693,1779288647000,-500.0,8.219e-05,2]
[422710687,1779288647000,-553.27,8.219e-05,2]
[422710697,1779288647000,-473.343753,8.219e-05,2]
[422710698,1779288647000,-500.0,8.219e-05,2]
[422710685,1779288647000,-758.05,8.219e-05,2]
[422710705,1779288647000,-500.0,8.219e-05,2]
[422710678,1779288647000,-500.0,8.219e-05,2]
[422710691,1779288647000,-500.0,8.219e-05,2]
[422710711,1779288647000,-473.343753,8.219e-05,2]
[422710727,1779288647000,-473.343753,8.219e-05,2]
[422710717,1779288647000,-473.343753,8.219e-05,2]
[422710707,1779288647000,-151.0,8.219e-05,2]
[422710715,1779288647000,-473.343753,8.219e-05,2]
[422710719,1779288647000,-500.0,8.219e-05,2]
[422710723,1779288647000,-553.803342,8.219e-05,2]
[422710713,1779288647000,-473.343753,8.219e-05,2]
[422710721,1779288647000,-1399.77,8.219e-05,2]
[422710725,1779288647000,-553.803342,8.219e-05,2]
[422710683,1779288647000,-942.53,8.219e-05,2]
[422710728,1779288647000,-553.803342,8.219e-05,2]
[422710730,1779288647000,-473.343753,8.219e-05,2]
[422710732,1779288647000,-553.803342,8.219e-05,2]
[422710737,1779288647000,-553.803342,8.219e-05,2]
[422710734,1779288647000,-553.803342,8.219e-05,2]
[422710709,1779288647000,-716.7,8.219e-05,2]
[422710680,1779288647000,-500.0,8.219e-05,2]
[422710670,1779288647000,-151.0,8.219e-05,2]
[422710674,1779288647000,-500.0,8.219e-05,2]
[422710739,1779288647000,-467.765431,8.219e-05,2]
[422710622,1779288647000,-528.98,8.219e-05,2]
[422710618,1779288647000,-568.109035,8.219e-05,2]
[422710620,1779288647000,-500.0,8.219e-05,2]
[422710626,1779288647000,-1418.32,8.219e-05,2]
[422710628,1779288647000,-500.0,8.219e-05,2]
[422710632,1779288647000,-500.0,8.219e-05,2]
[422710624,1779288647000,-2620.37,8.219e-05,2]
[422710630,1779288647000,-500.0,8.219e-05,2]
[422710646,1779288647000,-500.0,8.219e-05,2]
[422710644,1779288647000,-500.0,8.219e-05,2]
[422710634,1779288647000,-500.0,8.219e-05,2]
[422710636,1779288647000,-500.0,8.219e-05,2]
[422710676,1779288647000,-1644.5467,8.219e-05,2]
[422710638,1779288647000,-500.0,8.219e-05,2]
[422710642,1779288647000,-1006.65,8.219e-05,2]
[422710640,1779288647000,-500.0,8.219e-05,2]
[422710650,1779288647000,-672.96,8.219e-05,2]
[422710652,1779288647000,-500.0,8.219e-05,2]
[422710654,1779288647000,-500.0,8.219e-05,2]
[422710656,1779288647000,-500.0,8.219e-05,2]
[422710661,1779288647000,-1030.37,8.219e-05,2]
[422710659,1779288647000,-500.0,8.219e-05,2]
[422710666,1779288647000,-500.0,8.219e-05,2]
[422710664,1779288647000,-500.0,8.219e-05,2]
[422710668,1779288647000,-500.0,8.219e-05,2]
[422710662,1779288647000,-500.0,8.219e-05,2]
[422710672,1779288647000,-500.0,8.219e-05,2]
[422710648,1779288647000,-744.24,8.219e-05,2]
[422710741,1779288647000,-467.765431,8.219e-05,2]
[422710818,1779288647000,-333.41708,8.219e-05,2]
[422710753,1779288647000,-553.803342,8.219e-05,2]
[422710814,1779288647000,-192.19891,8.219e-05,2]
[422710812,1779288647000,-500.0,8.219e-05,2]
[422710822,1779288647000,-192.19891,8.219e-05,2]
[422710824,1779288647000,-192.19891,8.219e-05,2]
[422710827,1779288647000,-333.41708,8.219e-05,2]
[422710825,1779288647000,-192.19891,8.219e-05,2]
[422710829,1779288647000,-333.41708,8.219e-05,2]
[422710831,1779288647000,-500.0,8.219e-05,2]
[422710843,1779288647000,-333.41708,8.219e-05,2]
[422710833,1779288647000,-192.19891,8.219e-05,2]
[422710844,1779288647000,-333.41708,8.219e-05,2]
[422710837,1779288647000,-192.19891,8.219e-05,2]
[422710841,1779288647000,-333.41708,8.219e-05,2]
[422710816,1779288647000,-333.41708,8.219e-05,2]
[422710835,1779288647000,-333.41708,8.219e-05,2]
[422710846,1779288647000,-565.33,8.219e-05,2]
[422710839,1779288647000,-192.19891,8.219e-05,2]
[422710849,1779288647000,-500.0,8.219e-05,2]
[422710851,1779288647000,-151.0,8.219e-05,2]
[422710853,1779288647000,-151.0,8.219e-05,2]
[422710855,1779288647000,-151.0,8.219e-05,2]
[422710857,1779288647000,-151.0,8.219e-05,2]
[422710856,1779288647000,-500.0,8.219e-05,2]
[422710859,1779288647000,-2818.16,8.219e-05,2]
[422710862,1779288647000,-500.0,8.219e-05,2]
[422710863,1779288647000,-575.850172,8.219e-05,2]
[422710860,1779288647000,-217.634311,8.219e-05,2]
[422710748,1779288647000,-467.765431,8.219e-05,2]
[422710848,1779288647000,-322.4322125,8.219e-05,2]
[422710820,1779288647000,-333.41708,8.219e-05,2]
[422710861,1779288647000,-500.0,8.219e-05,2]
[422710810,1779288647000,-192.19891,8.219e-05,2]
[422710808,1779288647000,-192.19891,8.219e-05,2]
[422710755,1779288647000,-553.803342,8.219e-05,2]
[422710757,1779288647000,-467.765431,8.219e-05,2]
[422710759,1779288647000,-467.765431,8.219e-05,2]
[422710763,1779288647000,-553.803342,8.219e-05,2]
[422710761,1779288647000,-467.765431,8.219e-05,2]
[422710769,1779288647000,-553.803342,8.219e-05,2]
[422710765,1779288647000,-2047.11,8.219e-05,2]
[422710767,1779288647000,-553.803342,8.219e-05,2]
[422710775,1779288647000,-3066.82,8.219e-05,2]
[422710777,1779288647000,-467.765431,8.219e-05,2]
[422710771,1779288647000,-467.765431,8.219e-05,2]
[422710773,1779288647000,-467.765431,8.219e-05,2]
[422710779,1779288647000,-467.765431,8.219e-05,2]
[422710751,1779288647000,-553.803342,8.219e-05,2]
[422710780,1779288647000,-467.765431,8.219e-05,2]
[422710806,1779288647000,-333.41708,8.219e-05,2]
[422710807,1779288647000,-333.41708,8.219e-05,2]
[422710804,1779288647000,-333.41708,8.219e-05,2]
[422710800,1779288647000,-192.19891,8.219e-05,2]
[422710790,1779288647000,-2542.72,8.219e-05,2]
[422710786,1779288647000,-500.0,8.219e-05,2]
[422710802,1779288647000,-500.0,8.219e-05,2]
[422710782,1779288647000,-467.765431,8.219e-05,2]
[422710796,1779288647000,-192.19891,8.219e-05,2]
[422710794,1779288647000,-500.0,8.219e-05,2]
[422710784,1779288647000,-500.0,8.219e-05,2]
[422710798,1779288647000,-192.19891,8.219e-05,2]
[422710792,1779288647000,-2208.43,8.219e-05,2]
[422710788,1779288647000,-500.0,8.219e-05,2]
[422710908,1779288648000,-500.0,8.219e-05,2]
[422710903,1779288648000,-500.0,8.219e-05,2]
[422710900,1779288648000,-289.096844,8.219e-05,2]
[422710898,1779288648000,-289.096844,8.219e-05,2]
[422710902,1779288648000,-289.096844,8.219e-05,2]
[422710893,1779288648000,-289.096844,8.219e-05,2]
[422710910,1779288648000,-4284.29,8.219e-05,2]
[422710905,1779288648000,-666.8,8.219e-05,2]
[422710911,1779288648000,-500.0,8.219e-05,2]
[422710909,1779288648000,-6250.68,8.219e-05,2]
[422710899,1779288648000,-289.096844,8.219e-05,2]
[422710904,1779288648000,-2129.77,8.219e-05,2]
[422710901,1779288648000,-289.096844,8.219e-05,2]
[422710923,1779288648000,-500.0,8.219e-05,2]
[422710906,1779288648000,-839.96,8.219e-05,2]
[422710914,1779288648000,-3830.11580721,8.219e-05,2]
[422710912,1779288648000,-500.0,8.219e-05,2]
[422710915,1779288648000,-1465.79419279,8.219e-05,2]
[422710916,1779288648000,-19733.47997197,8.219e-05,2]
[422710913,1779288648000,-500.0,8.219e-05,2]
[422710924,1779288648000,-151.0,8.219e-05,2]
[422710919,1779288648000,-1548.9,8.219e-05,2]
[422710917,1779288648000,-12297.30002803,8.219e-05,2]
[422710921,1779288648000,-500.0,8.219e-05,2]
[422710918,1779288648000,-500.0,8.219e-05,2]
[422710920,1779288648000,-500.0,8.219e-05,2]
[422710886,1779288648000,-2783.65,8.219e-05,2]
[422710907,1779288648000,-500.0,8.219e-05,2]
[422710892,1779288648000,-500.0,8.219e-05,2]
[422710873,1779288648000,-575.850172,8.219e-05,2]
[422710884,1779288648000,-168.653403,8.219e-05,2]
[422710869,1779288648000,-1824.25,8.219e-05,2]
[422710868,1779288648000,-575.850172,8.219e-05,2]
[422710867,1779288648000,-575.850172,8.219e-05,2]
[422710865,1779288648000,-575.850172,8.219e-05,2]
[422710866,1779288648000,-575.850172,8.219e-05,2]
[422710864,1779288648000,-575.850172,8.219e-05,2]
[422710870,1779288648000,-575.850172,8.219e-05,2]
[422710872,1779288648000,-575.850172,8.219e-05,2]
[422710882,1779288648000,-500.0,8.219e-05,2]
[422710883,1779288648000,-151.0,8.219e-05,2]
[422710871,1779288648000,-500.0,8.219e-05,2]
[422710878,1779288648000,-500.0,8.219e-05,2]
[422710874,1779288648000,-744.47,8.219e-05,2]
[422710894,1779288648000,-289.096844,8.219e-05,2]
[422710877,1779288648000,-575.850172,8.219e-05,2]
[422710875,1779288648000,-575.850172,8.219e-05,2]
[422710922,1779288648000,-6374.94,8.219e-05,2]
[422710879,1779288648000,-1222.7,8.219e-05,2]
[422710880,1779288648000,-500.0,8.219e-05,2]
[422710885,1779288648000,-2062.73,8.219e-05,2]
[422710895,1779288648000,-1885.13,8.219e-05,2]
[422710897,1779288648000,-289.096844,8.219e-05,2]
[422710896,1779288648000,-1996.64,8.219e-05,2]
[422710890,1779288648000,-289.096844,8.219e-05,2]
[422710888,1779288648000,-289.096844,8.219e-05,2]
[422710891,1779288648000,-289.096844,8.219e-05,2]
[422710889,1779288648000,-1051.31,8.219e-05,2]
[422710887,1779288648000,-289.096844,8.219e-05,2]
[422710876,1779288648000,-575.850172,8.219e-05,2]
[422710926,1779288648000,-151.0,8.219e-05,2]
[422710881,1779288648000,-500.0,8.219e-05,2]
[422710935,1779288648000,-500.0,8.219e-05,2]
[422710964,1779288648000,-500.0,8.219e-05,2]
[422710962,1779288648000,-500.0,8.219e-05,2]
[422710965,1779288648000,-500.0,8.219e-05,2]
[422710960,1779288648000,-372.61228256,8.219e-05,2]
[422710959,1779288648000,-1941.08,8.219e-05,2]
[422710967,1779288648000,-1253.02,8.219e-05,2]
[422710977,1779288648000,-215.42211994,8.219e-05,2]
[422710969,1779288648000,-500.0,8.219e-05,2]
[422710966,1779288648000,-3021.17,8.219e-05,2]
[422710970,1779288648000,-4566.39,8.219e-05,2]
[422710973,1779288648000,-2866.97716934,8.219e-05,2]
[422710971,1779288648000,-2990.23,8.219e-05,2]
[422710972,1779288648000,-500.0,8.219e-05,2]
[422710961,1779288648000,-992.25,8.219e-05,2]
[422710968,1779288648000,-500.0,8.219e-05,2]
[422710976,1779288648000,-500.0,8.219e-05,2]
[422710975,1779288648000,-500.0,8.219e-05,2]
[422710979,1779288648000,-207.90177373,8.219e-05,2]
[422710978,1779288648000,-162.71592861,8.219e-05,4]
[422710980,1779288648000,-500.0,8.219e-05,2]
[422710981,1779288648000,-217.30084272,8.219e-05,2]
[422710983,1779288648000,-322.43221249,8.288e-05,2]
[422710982,1779288648000,-165.565678,8.269e-05,2]
[422710984,1779288648000,-322.43221249,8.356e-05,2]
[422710987,1779288648000,-415.80354746,8.373e-05,2]
[422710986,1779288648000,-430.84423989,8.36e-05,2]
[422710988,1779288648000,-325.43185721,8.377e-05,4]
[422710985,1779288648000,-434.60168544,8.36e-05,2]
[422710974,1779288648000,-4294.46283066,8.219e-05,2]
[422710958,1779288648000,-500.0,8.219e-05,2]
[422710933,1779288648000,-1367.91,8.219e-05,2]
[422710963,1779288648000,-500.0,8.219e-05,2]
[422710957,1779288648000,-500.0,8.219e-05,2]
[422710934,1779288648000,-500.0,8.219e-05,2]
[422710938,1779288648000,-151.0,8.219e-05,2]
[422710925,1779288648000,-151.0,8.219e-05,2]
[422710936,1779288648000,-2666.66,8.219e-05,2]
[422710937,1779288648000,-500.0,8.219e-05,2]
[422710928,1779288648000,-500.0,8.219e-05,2]
[422710927,1779288648000,-151.0,8.219e-05,2]
[422710929,1779288648000,-500.0,8.219e-05,2]
[422710931,1779288648000,-500.18152428,8.219e-05,2]
[422710930,1779288648000,-258.407528,8.219e-05,2]
[422710940,1779288648000,-151.0,8.219e-05,2]
[422710942,1779288648000,-2081.97,8.219e-05,2]
[422710945,1779288648000,-1763.2,8.219e-05,2]
[422710932,1779288648000,-2098.16,8.219e-05,2]
[422710939,1779288648000,-151.0,8.219e-05,2]
[422710955,1779288648000,-1773.08,8.219e-05,2]
[422710954,1779288648000,-834.12,8.219e-05,2]
[422710952,1779288648000,-849.12,8.219e-05,2]
[422710943,1779288648000,-699.33,8.219e-05,2]
[422710956,1779288648000,-823.14,8.219e-05,2]
[422710950,1779288648000,-500.0,8.219e-05,2]
[422710951,1779288648000,-562.39,8.219e-05,2]
[422710953,1779288648000,-1395.06,8.219e-05,2]
[422710948,1779288648000,-500.0,8.219e-05,2]
[422710947,1779288648000,-500.0,8.219e-05,2]
[422710946,1779288648000,-2839.86,8.219e-05,2]
[422710944,1779288648000,-500.0,8.219e-05,2]
[422710941,1779288648000,-1431.92,8.219e-05,2]
[422710949,1779288648000,-5303.02,8.219e-05,2]
[422711008,1779288649000,-194.07061374,8.489e-05,2]
[422710989,1779288649000,-155.22556547,8.377e-05,2]
[422710994,1779288649000,-300.0,8.382e-05,2]
[422710991,1779288649000,-300.0,8.382e-05,2]
[422710992,1779288649000,-300.0,8.382e-05,2]
[422710993,1779288649000,-300.0,8.382e-05,2]
[422710996,1779288649000,-300.0,8.382e-05,2]
[422710995,1779288649000,-300.0,8.382e-05,2]
[422710998,1779288649000,-300.0,8.382e-05,2]
[422710990,1779288649000,-300.0,8.382e-05,2]
[422710999,1779288649000,-300.0,8.382e-05,2]
[422711001,1779288649000,-300.0,8.382e-05,2]
[422711000,1779288649000,-300.0,8.382e-05,2]
[422711002,1779288649000,-300.0,8.382e-05,2]
[422711004,1779288649000,-300.0,8.382e-05,2]
[422711005,1779288649000,-600.0,8.382e-05,2]
[422711006,1779288649000,-500.0,8.4e-05,2]
[422711007,1779288649000,-322.43221249,8.425e-05,2]
[422711003,1779288649000,-300.0,8.382e-05,2]
[422710997,1779288649000,-300.0,8.382e-05,2]
[422711022,1779289273000,-207.1308963,7.134e-05,2]
[422711023,1779289290000,-165.565678,7.884e-05,2]
[422711024,1779289307000,-500.0,7.901e-05,2]
[422711025,1779289324000,-499.79120791,7.992e-05,2]
[422711026,1779289341000,-1413.0,8.056e-05,2]
[422711027,1779289357000,-30759.60087004,8.019e-05,2]
[422711028,1779289375000,-1198.64322894,8.019e-05,2]
[422711029,1779289392000,-10179.56322979,8.1e-05,2]
[422711068,1779289831000,-2006.02648224,8e-05,30]
[422711066,1779289831000,-165.565678,7.908e-05,2]
[422711067,1779289831000,-156.95759434,8e-05,30]
[422711087,1779289838000,-1262.90128913,8e-05,30]
[422711128,1779289843000,-239.0407384,8.109e-05,2]
[422711126,1779289843000,-616.94145189,8e-05,30]
[422711127,1779289843000,-1004.51418659,8e-05,30]
[422711131,1779289844000,-960.0,8.11e-05,2]
[422711129,1779289844000,-250.75464535,8.109e-05,2]
[422711132,1779289844000,-160.0,8.111e-05,2]
[422711134,1779289844000,-213.15250812,8.111e-05,2]
[422711133,1779289844000,-391.0928465,8.111e-05,2]
[422711130,1779289844000,-300.0,8.11e-05,2]
[422711173,1779289847000,-3178.9627,8.219e-05,2]
[422711168,1779289847000,-330.17239664,8.218e-05,2]
[422711169,1779289847000,-500.0,8.218e-05,2]
[422711163,1779289847000,-500.0,8.218e-05,2]
[422711167,1779289847000,-500.0,8.218e-05,2]
[422711166,1779289847000,-500.0,8.218e-05,2]
[422711165,1779289847000,-500.0,8.218e-05,2]
[422711164,1779289847000,-500.0,8.218e-05,2]
[422711159,1779289847000,-500.0,8.218e-05,2]
[422711162,1779289847000,-500.0,8.218e-05,2]
[422711158,1779289847000,-500.0,8.218e-05,2]
[422711157,1779289847000,-500.0,8.218e-05,2]
[422711161,1779289847000,-500.0,8.218e-05,2]
[422711155,1779289847000,-500.0,8.218e-05,2]
[422711156,1779289847000,-500.0,8.218e-05,2]
[422711153,1779289847000,-443.0,8.152e-05,2]
[422711154,1779289847000,-185.0,8.152e-05,2]